bitfinex-derivatives/quotes_ETHF0:USTF0_20260120
["timestamp","ask_amount","ask_price","bid_price","bid_amount"]
[1768888982698,0.82523726,3171.0,3169.6,3.909]
[1768888982889,2.98228753,3171.1,3169.6,3.909]
[1768888983093,3.80755913,3171.0,3169.6,3.909]
[1768888983402,2.98228753,3171.0,3169.6,3.909]
[1768888987505,0.82470051,3170.9,3169.7,3.91]
[1768888987699,2.98228753,3170.7,3169.7,3.91]
[1768888989105,2.98228753,3170.7,3169.5,0.00247198]
[1768888991297,2.98228753,3170.7,3168.7,5.97473984]
[1768888991298,2.98228753,3170.5,3168.4,6.75072661]
[1768888991508,2.98228753,3170.3,3168.4,3.10683643]
[1768888991702,2.98228753,3170.3,3168.5,7.01983643]
[1768888991903,2.98228753,3170.3,3168.6,40.8]
[1768888992311,2.98228753,3170.3,3168.6,40.80319436]
[1768888992713,2.98228753,3170.3,3168.6,43.91003079]
[1768888993706,2.98228753,3170.3,3168.7,3.10683643]
[1768888997317,2.98228753,3170.3,3168.8,40.8]
[1768888998719,2.98228753,3170.3,3168.8,43.90683643]
[1768888999028,2.98228753,3170.3,3169.1,0.87688562]
[1768888999330,2.98228753,3170.3,3169.1,4.80388562]
[1768889001222,3.14011753,3170.7,3169.4,0.87688562]
[1768889001422,0.82432351,3170.6,3169.4,0.87688562]
[1768889001623,3.14011753,3170.7,3169.4,0.87688562]
[1768889001624,0.82432351,3170.5,3169.4,0.87688562]
[1768889001833,3.14011753,3170.7,3169.4,0.87688562]
[1768889002037,0.82431728,3170.6,3169.4,0.87688562]
[1768889002330,0.82431728,3170.5,3169.4,0.87688562]
[1768889002528,3.14011753,3170.7,3169.4,0.87688562]
[1768889002721,0.82430877,3170.6,3169.4,0.87688562]
[1768889002923,0.82430877,3170.5,3169.4,0.87688562]
[1768889003125,3.14011753,3170.7,3169.4,0.87688562]
[1768889003326,0.82428285,3170.6,3169.4,0.87688562]
[1768889003528,0.82428285,3170.5,3169.4,0.87688562]
[1768889003727,3.14011753,3170.7,3169.4,0.87688562]
[1768889003927,0.82431053,3170.6,3169.4,0.87688562]
[1768889004133,0.82431053,3170.5,3169.4,0.87688562]
[1768889004326,3.14011753,3170.7,3169.4,0.87688562]
[1768889004525,0.82430325,3170.6,3169.4,0.87688562]
[1768889004726,0.82430325,3170.5,3169.4,0.87688562]
[1768889005026,2.98228753,3170.7,3169.4,0.87688562]
[1768889005226,0.82430326,3170.6,3169.4,0.87688562]
[1768889005531,0.82430326,3170.5,3169.4,0.87688562]
[1768889005849,2.98228753,3170.7,3169.4,0.87688562]
[1768889006032,0.82429635,3170.6,3169.4,0.87688562]
[1768889006224,0.82429635,3170.5,3169.4,0.87688562]
[1768889006424,2.98228753,3170.7,3169.4,0.87688562]
[1768889006633,0.8242896,3170.6,3169.4,0.87688562]
[1768889006821,0.8242896,3170.5,3169.4,0.87688562]
[1768889007024,2.98228753,3170.7,3169.4,0.87688562]
[1768889007220,0.82425242,3170.6,3169.4,0.87688562]
[1768889007426,0.82425242,3170.5,3169.4,0.87688562]
[1768889007636,2.98228753,3170.7,3169.4,0.87688562]
[1768889007836,0.82074467,3170.6,3169.4,0.87688562]
[1768889008134,0.82074467,3170.5,3169.4,0.87688562]
[1768889008330,2.98228753,3170.7,3169.4,0.87688562]
[1768889008522,0.82072716,3170.6,3169.4,0.87688562]
[1768889008722,1.13539226,3171.0,3169.4,4.05814862]
[1768889008929,0.82072693,3170.9,3169.4,4.05814862]
[1768889009134,0.82072693,3170.8,3169.4,4.05814862]
[1768889009334,0.82072693,3170.7,3169.4,4.05814862]
[1768889009536,0.82072693,3170.6,3169.7,0.87688562]
[1768889009731,3.10021299,3171.1,3169.7,0.87688562]
[1768889009927,0.8206631,3171.0,3169.7,0.87688562]
[1768889010127,0.8206631,3170.9,3169.8,3.938]
[1768889010329,3.10021299,3171.1,3169.8,3.938]
[1768889010634,0.82067179,3171.0,3169.8,3.938]
[1768889010934,0.82067179,3170.9,3169.8,4.81488562]
[1768889011134,3.10021299,3171.1,3169.8,4.81488562]
[1768889011342,0.82067175,3171.0,3169.8,3.938]
[1768889011637,0.82067175,3170.9,3169.8,3.938]
[1768889011936,3.10021299,3171.1,3169.8,3.938]
[1768889012137,3.92096617,3171.0,3169.8,3.938]
[1768889012338,0.82075318,3170.9,3169.8,3.938]
[1768889013939,0.15781,3171.2,3169.8,3.938]
[1768889014139,0.82089762,3171.1,3169.8,3.938]
[1768889014338,0.82089762,3171.0,3169.8,3.938]
[1768889014638,3.25802299,3171.2,3169.8,3.938]
[1768889014639,0.82089762,3170.9,3169.8,3.938]
[1768889014835,3.25802299,3171.2,3169.8,3.938]
[1768889015035,0.82095318,3171.1,3169.8,3.938]
[1768889015234,0.82095318,3171.0,3169.8,3.938]
[1768889015435,0.82095318,3170.9,3169.8,3.938]
[1768889015639,3.25802299,3171.2,3169.8,3.938]
[1768889015840,0.82101057,3171.1,3169.8,3.938]
[1768889016038,0.82101057,3171.0,3169.8,3.938]
[1768889016239,0.82101057,3170.9,3169.8,3.938]
[1768889016539,3.25802299,3171.2,3169.8,3.938]
[1768889016740,0.82107139,3171.1,3169.8,3.938]
[1768889016942,0.82107139,3171.0,3169.8,3.938]
[1768889017143,0.82107139,3170.9,3169.8,3.938]
[1768889017442,3.25802299,3171.2,3169.8,3.938]
[1768889017628,3.92134679,3171.1,3169.8,3.938]
[1768889017834,0.8211338,3171.0,3169.8,3.938]
[1768889018940,3.92134679,3171.0,3169.7,0.87688562]
[1768889019142,3.92134679,3170.9,3169.4,7.98514862]
[1768889019442,4.79823241,3170.8,3169.4,7.98414862]
[1768889019639,3.10021299,3170.7,3169.4,4.05814862]
[1768889019836,3.10021299,3170.7,3169.4,4.80288562]
[1768889022436,3.10021299,3170.7,3169.5,3.93]
[1768889023147,2.99317609,3170.5,3169.3,3.931]
[1768889023449,2.99317609,3170.5,3169.4,0.87688562]
[1768889025041,0.15783,3170.8,3169.7,0.87688562]
[1768889025241,0.8212087,3170.7,3169.7,0.87688562]
[1768889025441,2.99317609,3170.9,3169.7,0.87688562]
[1768889025642,0.82122888,3170.8,3169.7,0.87688562]
[1768889025843,5.00545397,3171.3,3169.7,0.87688562]
[1768889026041,0.82120278,3171.2,3169.7,0.87688562]
[1768889026241,0.82120278,3171.1,3169.7,0.87688562]
[1768889026450,0.82120278,3171.0,3169.7,0.87688562]
[1768889026651,0.82120278,3170.9,3169.7,0.87688562]
[1768889026843,2.99317609,3171.2,3169.7,0.87688562]
[1768889027044,0.82122616,3171.1,3169.7,0.87688562]
[1768889027242,0.82122616,3171.0,3169.7,0.87688562]
[1768889027443,0.82122616,3170.9,3169.7,0.87688562]
[1768889027642,0.82122616,3170.8,3169.7,0.87688562]
[1768889027848,2.99317609,3171.2,3169.7,0.87688562]
[1768889028042,0.82126463,3171.1,3169.7,0.87688562]
[1768889028243,0.82126463,3171.0,3169.7,0.87688562]
[1768889028443,0.82126463,3170.9,3169.7,0.87688562]
[1768889028639,0.82126463,3170.8,3169.7,0.87688562]
[1768889028850,2.99317609,3171.2,3169.7,0.87688562]
[1768889029051,0.82131755,3171.1,3169.7,0.87688562]
[1768889029245,0.82131755,3171.0,3169.7,0.87688562]
[1768889029446,0.82131755,3170.9,3169.7,0.87688562]
[1768889029649,0.82131755,3170.8,3169.7,0.87688562]
[1768889029851,4.12856835,3171.2,3169.7,0.87688562]
[1768889030153,0.82137857,3171.1,3169.7,3.86760671]
[1768889030343,0.82137857,3171.0,3169.7,3.86760671]
[1768889030543,0.82137857,3170.9,3169.7,3.86760671]
[1768889030745,2.99317609,3171.2,3169.7,3.86760671]
[1768889030947,0.82142509,3171.1,3169.7,3.86760671]
[1768889031146,0.82142509,3171.0,3169.7,3.86760671]
[1768889031347,0.82142509,3170.9,3169.7,3.86760671]
[1768889031647,2.99317609,3171.2,3169.7,3.86760671]
[1768889031849,0.82145013,3171.1,3169.7,3.86760671]
[1768889032150,0.82145013,3171.0,3169.8,2.99072109]
[1768889032457,0.82145013,3170.9,3169.8,2.99072109]
[1768889032643,0.82145013,3170.8,3169.8,2.99072109]
[1768889032843,2.99317609,3171.2,3169.9,0.87688562]
[1768889033053,0.82147292,3171.1,3169.9,0.87688562]
[1768889033251,0.82147292,3171.0,3169.9,0.87688562]
[1768889033443,0.82147292,3170.9,3169.9,0.87688562]
[1768889033644,0.82147292,3170.8,3169.9,0.87688562]
[1768889033844,2.99317609,3171.2,3169.9,0.87688562]
[1768889034044,0.82151053,3171.1,3169.9,0.87688562]
[1768889034244,0.82151053,3171.0,3169.9,0.87688562]
[1768889034544,0.82151053,3170.9,3169.9,0.87688562]
[1768889034746,0.82151053,3170.8,3169.9,0.87688562]
[1768889034957,4.12856835,3171.2,3169.8,3.86760671]
[1768889035252,0.82155748,3171.1,3169.8,3.86760671]
[1768889035453,0.82155748,3171.0,3169.8,3.86760671]
[1768889035655,0.82155748,3170.9,3169.8,3.86760671]
[1768889035953,0.82155748,3170.8,3169.8,3.86760671]
[1768889036154,4.12856835,3171.2,3169.8,3.86760671]
[1768889036455,0.82161613,3171.1,3169.8,3.86760671]
[1768889036656,0.82161613,3171.0,3169.8,3.86760671]
[1768889036849,0.82161613,3170.9,3169.8,3.86760671]
[1768889037049,0.82161613,3170.8,3169.8,3.86760671]
[1768889037250,4.12856835,3171.2,3169.8,3.86760671]
[1768889037454,0.82177595,3171.1,3169.8,3.86760671]
[1768889037654,0.82177595,3171.0,3169.8,3.86760671]
[1768889037953,0.82177595,3170.9,3169.8,3.86760671]
[1768889038266,0.82177595,3170.8,3169.8,3.86760671]
[1768889038457,4.12856835,3171.2,3169.8,3.86760671]
[1768889038650,0.82592005,3171.1,3169.8,3.86760671]
[1768889038852,0.82592005,3171.0,3169.8,3.86760671]
[1768889039050,0.82592005,3170.9,3169.8,3.86760671]
[1768889039251,0.82592005,3170.8,3169.8,3.86760671]
[1768889039451,0.87688562,3171.1,3169.8,2.99072109]
[1768889039647,0.82597707,3171.0,3169.6,0.87688562]
[1768889039849,0.82597707,3170.9,3169.6,4.79288562]
[1768889040050,0.82597707,3170.8,3169.6,4.79288562]
[1768889040246,3.26282635,3171.0,3169.0,2.81773984]
[1768889040456,0.87688562,3170.4,3169.1,3.06673015]
[1768889040753,4.13971197,3170.7,3169.3,0.87688562]
[1768889040959,0.8260524,3170.6,3169.3,0.87688562]
[1768889041159,0.8260524,3170.5,3169.3,0.87688562]
[1768889041363,3.26282635,3170.7,3169.3,0.87688562]
[1768889041658,0.82593471,3170.6,3169.3,0.87688562]
[1768889041845,3.26282635,3170.4,3168.9,40.8]
[1768889042054,4.13971197,3170.2,3168.8,3.916]
[1768889042558,4.13971197,3170.2,3168.8,40.8]
[1768889043357,3.26282635,3170.1,3168.8,40.8]
[1768889043853,3.26282635,3170.1,3168.7,6.98473015]
[1768889044060,0.87688562,3170.2,3168.6,0.00319436]
[1768889044061,4.08847645,3170.0,3168.6,0.00319436]
[1768889044259,3.26656572,3170.0,3168.6,0.00319436]
[1768889044458,3.26656572,3170.0,3168.6,44.72119436]
[1768889044758,3.26656572,3170.0,3168.6,40.80319436]
[1768889046653,3.26656572,3170.0,3168.6,3.92519436]
[1768889047553,3.26656572,3170.0,3168.6,0.88007998]
[1768889047760,3.26656572,3170.0,3168.6,4.80307998]
[1768889048464,3.26656572,3170.0,3168.6,0.00319436]
[1768889052267,3.26656572,3170.0,3168.6,0.88007998]
[1768889055759,3.26656572,3170.0,3168.6,4.81407998]
[1768889056160,3.26656572,3170.0,3168.6,7.88081013]
[1768889056370,3.26656572,3170.0,3168.6,7.00392451]
[1768889056569,3.26656572,3170.0,3168.8,0.87688562]
[1768889057163,3.26656572,3170.0,3168.6,3.93719436]
[1768889057467,3.26656572,3170.0,3168.7,0.87688562]
[1768889057667,3.26656572,3170.0,3168.6,3.93719436]
[1768889057870,3.26656572,3170.0,3168.6,4.81407998]
[1768889058067,3.26656572,3170.0,3168.6,7.88081013]
[1768889058669,3.26656572,3170.0,3168.9,0.87688562]
[1768889059465,0.00373937,3170.0,3169.2,0.87688562]
[1768889060471,0.00373937,3170.0,3169.5,0.87688562]
[1768889060768,0.00373937,3170.0,3169.2,0.87688562]
[1768889060972,0.00373937,3170.0,3168.9,3.06673015]
[1768889063276,3.11561276,3170.0,3168.6,0.00319436]
[1768889063575,3.11561276,3170.0,3168.7,3.944]
[1768889063768,3.11561276,3170.0,3168.6,3.01414056]
[1768889063975,3.11561276,3170.0,3168.8,3.944]
[1768889066174,3.11561276,3170.0,3168.9,3.948]
[1768889066979,0.00373937,3170.0,3168.9,3.948]
[1768889068679,0.00373937,3170.0,3169.0,3.951]
[1768889069375,0.82683813,3169.9,3168.6,3.01414056]
[1768889069571,3.11187339,3169.9,3168.6,0.00319436]
[1768889069781,3.11187339,3169.9,3168.7,3.953]
[1768889072083,0.82705276,3169.8,3168.7,3.953]
[1768889072274,3.11187339,3169.9,3168.7,3.953]
[1768889072475,0.82714163,3169.8,3168.7,3.953]
[1768889072674,3.11187339,3169.9,3168.7,3.953]
[1768889072875,0.82716413,3169.8,3168.7,3.953]
[1768889073074,3.11187339,3169.9,3168.7,3.953]
[1768889073275,0.8272721,3169.8,3168.7,3.953]
[1768889073471,3.11187339,3169.9,3168.8,3.959]
[1768889073675,3.11187339,3169.9,3168.6,0.00319436]
[1768889073676,3.11187339,3169.7,3168.7,3.959]
[1768889073876,0.82727227,3169.6,3168.7,3.959]
[1768889074676,0.82727227,3169.6,3168.6,3.96119436]
[1768889074878,3.93914566,3169.6,3168.6,0.00319436]
[1768889075083,0.82727227,3169.5,3168.6,0.00319436]
[1768889075283,0.82727227,3169.4,3168.6,0.00319436]
[1768889075475,3.11187339,3169.6,3168.6,0.00319436]
[1768889075678,0.82692192,3169.5,3168.6,0.00319436]
[1768889075974,0.82692192,3169.4,3168.6,0.00319436]
[1768889076175,3.11187339,3169.6,3168.6,0.00319436]
[1768889076371,3.11187339,3169.4,3168.6,0.00319436]
[1768889077185,0.15788,3169.8,3168.6,0.00319436]
[1768889077389,0.82655532,3169.7,3168.6,0.00319436]
[1768889077579,0.82655532,3169.6,3168.6,0.00319436]
[1768889077886,0.82655532,3169.5,3168.6,0.00319436]
[1768889078077,3.11187339,3169.7,3168.6,0.00319436]
[1768889078278,0.82642016,3169.6,3168.6,0.00319436]
[1768889078479,0.82642016,3169.5,3168.6,0.00319436]
[1768889078785,3.11187339,3169.7,3168.6,0.00319436]
[1768889078987,0.82642835,3169.6,3168.6,0.00319436]
[1768889079289,0.82642835,3169.5,3168.6,0.00319436]
[1768889079487,3.11187339,3169.7,3168.6,0.00319436]
[1768889079688,0.82630801,3169.6,3168.6,0.00319436]
[1768889079885,0.82630801,3169.5,3168.6,0.00319436]
[1768889080086,3.11187339,3169.7,3168.6,0.00319436]
[1768889080287,0.82621306,3169.6,3168.6,0.00319436]
[1768889080479,0.82621306,3169.5,3168.6,0.00319436]
[1768889080678,3.11187339,3169.6,3168.6,0.00319436]
[1768889080876,0.82621326,3169.5,3168.6,0.00319436]
[1768889081084,3.11187339,3169.6,3168.6,0.00319436]
[1768889081379,0.82611016,3169.5,3168.6,0.00319436]
[1768889081579,3.11187339,3169.6,3168.6,0.00319436]
[1768889081789,0.82611542,3169.5,3168.6,0.00319436]
[1768889082088,3.11187339,3169.6,3168.6,0.00319436]
[1768889082388,0.82602249,3169.5,3168.6,0.00319436]
[1768889082587,3.11187339,3169.6,3168.6,0.00319436]
[1768889082788,0.82602213,3169.5,3168.6,0.00319436]
[1768889082978,3.11187339,3169.6,3168.6,0.00319436]
[1768889083180,0.82601986,3169.5,3168.6,0.00319436]
[1768889083381,0.82601986,3169.4,3168.6,0.00319436]
[1768889083676,3.11187339,3169.6,3168.6,0.00319436]
[1768889083985,0.82594646,3169.5,3168.6,0.00319436]
[1768889084188,0.82594646,3169.4,3168.6,0.00319436]
[1768889084390,1.29327226,3169.8,3168.6,0.00319436]
[1768889084587,0.82584166,3169.7,3168.6,0.00319436]
[1768889084790,0.82584166,3169.6,3168.6,0.00319436]
[1768889084988,0.82584166,3169.5,3168.6,0.00319436]
[1768889085187,0.82584166,3169.4,3168.6,0.00319436]
[1768889085393,1.29327226,3169.8,3168.6,0.00319436]
[1768889085592,0.82575764,3169.7,3168.6,0.00319436]
[1768889085794,0.15788,3169.8,3168.6,0.00319436]
[1768889086396,0.8256777,3169.7,3168.6,0.00319436]
[1768889086596,0.8256777,3169.6,3168.6,0.00319436]
[1768889086783,0.8256777,3169.5,3168.6,0.00319436]
[1768889086989,0.15788,3169.8,3168.6,0.00319436]
[1768889087188,0.82564601,3169.7,3168.6,0.00319436]
[1768889087391,0.82564601,3169.6,3168.6,0.00319436]
[1768889087690,0.82564601,3169.5,3168.6,0.00319436]
[1768889087998,0.15788,3169.8,3168.6,0.00319436]
[1768889088197,0.00373937,3170.0,3168.6,3.03906697]
[1768889088396,3.97581929,3169.9,3168.6,0.00319436]
[1768889088603,3.97581929,3169.8,3168.6,0.00319436]
[1768889088899,0.82562922,3169.7,3168.6,0.00319436]
[1768889089102,3.15024496,3169.8,3168.6,0.00319436]
[1768889089299,0.82563873,3169.7,3168.6,0.00319436]
[1768889089602,3.15024496,3169.8,3168.6,0.00319436]
[1768889089794,0.82563889,3169.7,3168.6,0.00319436]
[1768889090097,3.15024496,3169.8,3168.6,0.00319436]
[1768889090299,3.97590201,3169.7,3168.6,0.00319436]
[1768889090492,3.15024496,3169.7,3168.6,0.00319436]
[1768889091498,3.15024496,3169.7,3168.3,44.64519436]
[1768889092293,3.15024496,3169.7,3168.3,40.8]
[1768889092495,3.15024496,3169.5,3168.3,0.00338845]
[1768889096203,3.28686991,3169.3,3168.3,0.00338845]
[1768889099495,0.82978231,3169.2,3168.3,0.00338845]
[1768889099694,3.28686991,3169.2,3168.3,0.00338845]
[1768889105702,4.11718788,3169.1,3168.3,0.00338845]
[1768889105902,0.83031797,3169.0,3168.3,0.00338845]
[1768889109202,4.57900519,3169.5,3168.3,0.00338845]
[1768889109402,0.82983549,3169.4,3168.3,0.00338845]
[1768889109606,0.82983549,3169.3,3168.3,0.00338845]
[1768889109809,0.82983549,3169.2,3168.3,0.00338845]
[1768889110002,3.44475991,3169.5,3168.3,0.00338845]
[1768889110197,0.82982788,3169.4,3168.3,0.00338845]
[1768889110402,0.82982788,3169.3,3168.3,0.00338845]
[1768889110700,0.82982788,3169.2,3168.3,0.00338845]
[1768889110900,1.13424528,3169.7,3168.3,0.00338845]
[1768889111103,0.82975062,3169.6,3168.3,0.00338845]
[1768889111302,0.82975062,3169.5,3168.3,0.00338845]
[1768889111502,0.82975062,3169.4,3168.3,0.00338845]
[1768889111702,1.13424528,3169.8,3168.3,0.00338845]
[1768889111914,1.96400331,3169.8,3168.3,0.00338845]
[1768889112305,5.25087322,3169.8,3168.3,3.06930613]
[1768889112504,0.82975803,3169.7,3168.3,3.06930613]
[1768889113414,0.00373937,3170.0,3168.6,3.06591768]
[1768889113616,0.82967698,3169.9,3168.7,3.958]
[1768889113810,0.82967698,3169.8,3168.7,3.958]
[1768889114004,0.00373937,3170.0,3168.7,3.958]
[1768889114203,0.82956645,3169.9,3168.7,3.958]
[1768889114412,0.82956645,3169.8,3168.7,3.958]
[1768889114605,0.00373937,3170.0,3168.7,3.958]
[1768889114807,0.82954051,3169.9,3168.7,3.958]
[1768889115010,0.82954051,3169.8,3168.7,3.958]
[1768889115209,0.00373937,3170.0,3168.7,3.958]
[1768889115409,0.82942565,3169.9,3168.7,3.958]
[1768889115602,0.82942565,3169.8,3168.7,3.958]
[1768889115815,0.00373937,3170.0,3168.7,3.958]
[1768889116011,0.82942566,3169.9,3168.7,3.958]
[1768889116217,0.82942566,3169.8,3168.7,3.958]
[1768889116517,0.00373937,3170.0,3168.7,3.958]
[1768889116715,0.82932419,3169.9,3168.7,3.958]
[1768889116914,0.82932419,3169.8,3168.7,3.958]
[1768889117215,0.00373937,3170.0,3168.7,3.958]
[1768889117408,0.82923288,3169.9,3168.7,3.958]
[1768889117608,0.82923288,3169.8,3168.7,3.958]
[1768889117809,0.00373937,3170.0,3168.7,3.958]
[1768889118010,0.82922655,3169.9,3168.7,3.958]
[1768889118304,0.82922655,3169.8,3168.7,3.958]
[1768889118504,0.00373937,3170.0,3168.7,3.958]
[1768889118709,0.82914583,3169.9,3168.7,3.958]
[1768889118920,0.82914583,3169.8,3168.7,3.958]
[1768889119108,0.00373937,3170.0,3168.7,3.958]
[1768889119305,0.82908595,3169.9,3168.7,3.958]
[1768889119512,0.00373937,3170.0,3168.7,3.958]
[1768889119820,0.82908594,3169.9,3168.7,3.958]
[1768889120019,0.00373937,3170.0,3168.7,3.958]
[1768889120319,0.829049,3169.9,3168.7,3.958]
[1768889120621,0.00373937,3170.0,3168.7,3.958]
[1768889120813,0.82902866,3169.9,3168.7,3.958]
[1768889121118,0.00373937,3170.0,3168.8,0.87707012]
[1768889121321,0.82897439,3169.9,3168.8,0.87707012]
[1768889121519,0.00373937,3170.0,3169.1,0.87707012]
[1768889121718,0.82893456,3169.9,3169.1,0.87707012]
[1768889121920,0.00373937,3170.0,3169.1,0.87707012]
[1768889122120,0.82893419,3169.9,3169.1,0.87707012]
[1768889122322,0.00373937,3170.0,3169.1,0.87707012]
[1768889122519,0.00373937,3170.0,3169.4,0.87707012]
[1768889122721,3.28686991,3170.6,3169.4,0.87707012]
[1768889123019,0.82879371,3170.5,3169.1,3.9429878]
[1768889123215,0.82879371,3170.4,3169.1,3.9429878]
[1768889123409,0.82879371,3170.3,3169.1,3.06591768]
[1768889123615,3.05135255,3170.1,3168.7,3.03878025]
[1768889123818,3.05135255,3170.1,3168.8,3.946]
[1768889124024,3.05135255,3170.1,3168.9,3.945]
[1768889124820,3.05135255,3170.1,3168.3,3.0421687]
[1768889125030,3.05135255,3170.1,3168.4,11.01785037]
[1768889125229,3.05135255,3170.1,3168.5,7.102]
[1768889125621,3.05135255,3170.1,3168.7,0.87707012]
[1768889126624,3.20921255,3170.1,3168.7,0.87707012]
[1768889128429,3.20921255,3170.1,3169.0,0.87707012]
[1768889128624,0.15786,3170.1,3169.3,0.87707012]
[1768889129126,0.00284703,3170.3,3169.3,0.87707012]
[1768889130228,0.00284703,3170.3,3169.6,0.87707012]
[1768889131934,4.34341783,3170.9,3169.6,0.87707012]
[1768889132124,0.82372726,3170.8,3169.5,0.87707012]
[1768889132326,0.82372726,3170.7,3169.5,0.87707012]
[1768889132525,0.82372726,3170.6,3169.5,0.87707012]
[1768889132735,3.20917255,3170.9,3169.5,0.87707012]
[1768889132938,3.05135255,3170.7,3169.3,3.03878025]
[1768889133228,3.92842267,3170.3,3168.9,3.03878025]
[1768889133535,3.05135255,3170.2,3169.0,3.935]
[1768889134231,3.05135255,3170.2,3169.0,4.81207012]
[1768889135146,3.05135255,3170.2,3169.0,0.87707012]
[1768889135336,3.05135255,3170.2,3169.1,3.937]
[1768889136734,0.15784,3170.5,3169.3,0.87707012]
[1768889136934,0.82381266,3170.4,3169.3,0.87707012]
[1768889137137,0.15784,3170.5,3169.3,0.87707012]
[1768889137336,0.82401634,3170.4,3169.3,0.87707012]
[1768889137524,0.15784,3170.5,3169.1,3.937]
[1768889137723,0.82400571,3170.4,3169.3,0.87707012]
[1768889137939,0.15784,3170.5,3169.3,0.87707012]
[1768889138265,0.82400638,3170.4,3169.3,0.87707012]
[1768889138546,0.15784,3170.5,3169.3,0.87707012]
[1768889138746,0.82425656,3170.4,3169.3,0.87707012]
[1768889138942,0.15784,3170.5,3169.3,0.87707012]
[1768889139146,0.82425524,3170.4,3169.3,0.87707012]
[1768889139445,0.82425524,3170.3,3169.3,0.87707012]
[1768889139648,0.15784,3170.5,3169.3,0.87707012]
[1768889140040,0.82456004,3170.4,3169.3,0.87707012]
[1768889140240,0.82456004,3170.3,3169.3,0.87707012]
[1768889140440,0.15784,3170.5,3169.3,0.87707012]
[1768889140645,0.82483051,3170.4,3169.3,0.87707012]
[1768889140846,0.82483051,3170.3,3169.3,0.87707012]
[1768889141035,0.15784,3170.5,3169.3,0.87707012]
[1768889141237,0.82500281,3170.4,3169.3,0.87707012]
[1768889141446,0.82500281,3170.3,3169.3,0.87707012]
[1768889141751,0.15784,3170.5,3169.3,0.87707012]
[1768889142049,0.82500279,3170.4,3169.3,0.87707012]
[1768889142242,0.82500279,3170.3,3169.3,0.87707012]
[1768889142442,0.15784,3170.5,3169.3,0.87707012]
[1768889142644,0.82522728,3170.4,3169.3,0.87707012]
[1768889142844,0.82522728,3170.3,3169.3,0.87707012]
[1768889143045,0.15784,3170.5,3169.3,0.87707012]
[1768889143243,0.82535318,3170.4,3169.3,0.87707012]
[1768889143442,0.82535318,3170.3,3169.3,0.87707012]
[1768889143645,0.82535318,3170.2,3169.3,0.87707012]
[1768889143847,0.15784,3170.5,3169.3,0.87707012]
[1768889144051,0.8253515,3170.4,3169.3,0.87707012]
[1768889144241,0.8253515,3170.3,3169.3,0.87707012]
[1768889144441,0.8253515,3170.2,3169.3,0.87707012]
[1768889144652,0.15784,3170.5,3169.3,0.87707012]
[1768889144851,0.82539622,3170.4,3169.3,0.87707012]
[1768889145147,0.82539622,3170.3,3169.3,0.87707012]
[1768889145342,0.82539622,3170.2,3169.3,0.87707012]
[1768889145542,0.15784,3170.5,3169.3,0.87707012]
[1768889145742,0.82545225,3170.4,3169.1,7.85285037]
[1768889145944,0.82545225,3170.3,3169.1,7.85285037]
[1768889146152,0.82545225,3170.2,3169.1,7.85285037]
[1768889146348,3.44889521,3170.5,3169.1,3.91585037]
[1768889146541,0.82553102,3170.4,3169.2,3.951]
[1768889146746,0.82553102,3170.3,3169.3,3.951]
[1768889146946,0.82553102,3170.2,3169.3,3.951]
[1768889147246,3.44889521,3170.5,3169.3,3.951]
[1768889147447,0.82561031,3170.4,3169.3,3.951]
[1768889147744,0.82561031,3170.3,3169.3,3.951]
[1768889147940,0.82561031,3170.2,3169.4,3.953]
[1768889148140,3.44889521,3170.5,3169.4,3.953]
[1768889148354,0.82569943,3170.4,3169.4,3.953]
[1768889148563,0.82569943,3170.3,3169.4,3.953]
[1768889148752,0.82569943,3170.2,3169.4,3.953]
[1768889148953,3.44889521,3170.5,3169.4,3.953]
[1768889149150,0.82569941,3170.4,3169.4,3.953]
[1768889149354,0.82569941,3170.3,3169.4,3.953]
[1768889149553,0.82569941,3170.2,3169.4,3.953]
[1768889149754,3.44889521,3170.5,3169.4,3.953]
[1768889149957,0.82580589,3170.4,3169.4,3.953]
[1768889150154,0.82580589,3170.3,3169.4,3.953]
[1768889150460,0.82580589,3170.2,3169.5,3.956]
[1768889150755,0.82580589,3170.1,3169.5,3.956]
[1768889150960,4.58314049,3170.5,3169.5,3.956]
[1768889151260,0.82593622,3170.4,3169.5,3.956]
[1768889151555,0.82593622,3170.3,3169.5,3.956]
[1768889151756,0.82593622,3170.2,3169.5,3.956]
[1768889151957,0.82593622,3170.1,3169.5,3.956]
[1768889152157,4.58314049,3170.5,3169.5,3.956]
[1768889152359,0.82624621,3170.4,3169.5,3.956]
[1768889152660,0.82624621,3170.3,3169.5,3.956]
[1768889152957,0.82624621,3170.2,3169.5,3.956]
[1768889153156,1.29208528,3170.5,3169.5,3.956]
[1768889153358,0.8262444,3170.4,3169.5,3.956]
[1768889153561,0.8262444,3170.3,3169.5,3.956]
[1768889153757,0.8262444,3170.2,3169.5,3.956]
[1768889153950,1.29208528,3170.5,3169.5,3.956]
[1768889154150,0.82624406,3170.4,3169.5,3.956]
[1768889154357,0.82624406,3170.3,3169.5,3.956]
[1768889154562,0.82624406,3170.2,3169.5,3.956]
[1768889154779,1.13424528,3170.7,3169.7,0.87707012]
[1768889155154,1.96046138,3170.7,3169.7,0.87707012]
[1768889155354,0.8262161,3170.6,3169.7,0.87707012]
[1768889155553,0.8262161,3170.5,3169.7,0.87707012]
[1768889155755,0.8262161,3170.4,3169.5,3.956]
[1768889155955,1.13424528,3170.8,3169.5,3.956]
[1768889156156,1.96043523,3170.8,3169.5,3.956]
[1768889156863,2.11826523,3170.8,3169.5,3.956]
[1768889157065,0.82618995,3170.7,3169.5,3.956]
[1768889157265,0.82618995,3170.6,3169.5,3.956]
[1768889157571,0.82618995,3170.5,3169.6,3.961]
[1768889157863,0.82618995,3170.4,3169.6,3.961]
[1768889158062,1.29207528,3170.8,3169.6,3.961]
[1768889158262,0.82288952,3170.7,3169.6,3.961]
[1768889158462,0.82288952,3170.6,3169.6,3.961]
[1768889158766,0.82288952,3170.5,3169.6,3.961]
[1768889158951,0.82288952,3170.4,3169.6,3.961]
[1768889159159,1.29207528,3170.8,3169.6,3.961]
[1768889159463,5.14713049,3170.7,3169.1,0.87707012]
[1768889159663,0.82286072,3170.6,3169.4,3.157]
[1768889160269,0.82286072,3170.6,3169.4,4.03407012]
[1768889160867,0.82286072,3170.6,3169.5,3.22779628]
[1768889161061,0.00235013,3170.9,3169.5,3.22779628]
[1768889161268,0.00235013,3170.9,3169.8,0.87707012]
[1768889161770,0.00235013,3170.9,3169.5,3.22779628]
[1768889161971,0.87942025,3170.9,3169.6,7.121]
[1768889162157,0.87942025,3170.9,3169.5,3.22779628]
[1768889162356,0.87942025,3170.9,3169.6,3.964]